fUSD/lending_fUSD_20241121
["ID","MTS","AMOUNT","RATE_DAILY","PERIOD"]
[342913761,1732203070524,-500.0,0.00042464,18]
[342913762,1732203070534,-500.0,0.00042464,18]
[342913763,1732203070543,-500.0,0.00042464,18]
[342913764,1732203070553,-500.0,0.00042464,18]
[342913765,1732203070563,-587.1,0.00042464,18]
[342913766,1732203070573,-500.0,0.00042464,18]
[342913767,1732203070582,-500.0,0.00042464,18]
[342913768,1732203070591,-500.0,0.00042464,18]
[342913769,1732203070601,-500.0,0.00042464,18]
[342913770,1732203070610,-500.0,0.00042464,18]
[342913771,1732203070619,-500.0,0.00042464,18]
[342913772,1732203070629,-500.0,0.00042464,18]
[342913773,1732203070638,-500.0,0.00042464,18]
[342913774,1732203070648,-500.0,0.00042464,18]
[342913775,1732203070657,-500.0,0.00042464,18]
[342913776,1732203070666,-500.0,0.00042464,18]
[342913777,1732203070676,-500.0,0.00042464,18]
[342913778,1732203070686,-500.0,0.00042464,18]
[342913779,1732203070695,-500.0,0.00042464,18]
[342913780,1732203070705,-500.0,0.00042464,18]
[342913781,1732203070714,-387.94552609,0.00042464,18]
[342913782,1732203070731,-500.0,0.00042464,18]
[342913783,1732203070740,-642.72,0.00042464,18]
[342913784,1732203070749,-669.32,0.00042464,18]
[342913785,1732203070759,-500.0,0.00042464,18]
[342913786,1732203070770,-500.0,0.00042464,18]
[342913787,1732203070780,-500.0,0.00042464,18]
[342913788,1732203070794,-695.72,0.00042464,18]
[342913789,1732203070803,-500.0,0.00042464,18]
[342913790,1732203070813,-500.0,0.00042464,18]
[342913791,1732203070822,-500.0,0.00042464,18]
[342913792,1732203070831,-500.0,0.00042464,18]
[342913793,1732203070841,-500.0,0.00042464,18]
[342913794,1732203070849,-500.0,0.00042464,18]
[342913795,1732203070859,-500.0,0.00042464,18]
[342913796,1732203070870,-1267.04,0.00042464,18]
[342913797,1732203070879,-500.0,0.00042464,18]
[342913798,1732203070889,-500.0,0.00042464,18]
[342913799,1732203070898,-948.43,0.00042464,18]
[342913800,1732203070907,-500.0,0.00042464,18]
[342913801,1732203070917,-500.0,0.00042464,18]
[342913802,1732203070926,-500.0,0.00042464,18]
[342913803,1732203070935,-500.0,0.00042464,18]
[342913804,1732203070944,-520.62,0.00042464,18]
[342913805,1732203070954,-500.0,0.00042464,18]
[342913806,1732203070963,-500.0,0.00042464,18]
[342913807,1732203070976,-500.0,0.00042464,18]
[342913808,1732203070986,-552.9,0.00042464,18]
[342913809,1732203070995,-513.64179402,0.00042464,18]
[342913810,1732203071004,-500.0,0.00042464,18]
[342913811,1732203071013,-500.0,0.00042464,18]
[342913812,1732203071022,-230.24512972,0.00042464,18]
[342913813,1732203071031,-500.0,0.00042464,18]
[342913814,1732203071040,-500.0,0.00042464,18]
[342913815,1732203071049,-500.0,0.00042464,18]
[342913816,1732203071059,-500.0,0.00042464,18]
[342913817,1732203071068,-500.0,0.00042464,18]
[342913818,1732203071077,-500.0,0.00042464,18]
[342913819,1732203071086,-500.0,0.00042464,18]
[342913820,1732203071095,-500.0,0.00042464,18]
[342913821,1732203071104,-500.0,0.00042464,18]
[342913822,1732203071114,-500.0,0.00042464,18]
[342913823,1732203071123,-500.0,0.00042464,18]
[342913824,1732203071132,-500.0,0.00042464,18]
[342913825,1732203071142,-500.0,0.00042464,18]
[342913826,1732203071151,-500.0,0.00042464,18]
[342913827,1732203071160,-2586.7,0.00042464,18]
[342913828,1732203071169,-500.0,0.00042464,18]
[342913829,1732203071179,-500.0,0.00042464,18]
[342913830,1732203071188,-543.58,0.00042464,18]
[342913831,1732203071197,-500.0,0.00042464,18]
[342913832,1732203071206,-543.0,0.00042464,18]
[342913833,1732203071215,-661.91,0.00042464,18]
[342913834,1732203071231,-500.0,0.00042464,18]
[342913835,1732203071240,-956.88,0.00042464,18]
[342913836,1732203071249,-500.0,0.00042464,18]
[342913837,1732203071258,-616.00773487,0.00042464,18]
[342913838,1732203071267,-500.0,0.00042464,18]
[342913839,1732203071277,-500.0,0.00042464,18]
[342913840,1732203071286,-887.91,0.00042464,18]
[342913841,1732203071295,-500.0,0.00042464,18]
[342913842,1732203071304,-500.0,0.00042464,18]
[342913843,1732203071313,-1615.25,0.00042464,18]
[342913844,1732203071322,-500.0,0.00042464,18]
[342913845,1732203071332,-500.0,0.00042464,18]
[342913846,1732203071341,-1481.48,0.00042464,18]
[342913847,1732203071350,-500.0,0.00042464,18]
[342913848,1732203071359,-500.0,0.00042464,18]
[342913849,1732203071369,-520.89,0.00042464,18]
[342913850,1732203071378,-514.41,0.00042464,18]
[342913851,1732203071388,-500.0,0.00042464,18]
[342913852,1732203071397,-500.0,0.00042464,18]
[342913853,1732203071408,-500.0,0.00042464,18]
[342913854,1732203071418,-500.0,0.00042464,18]
[342913855,1732203071428,-750.59,0.00042464,18]
[342913856,1732203071437,-3515.69,0.00042464,18]
[342913857,1732203071446,-500.0,0.00042464,18]
[342913858,1732203071456,-500.0,0.00042464,18]
[342913859,1732203071465,-1845.68,0.00042464,18]
[342913860,1732203071479,-500.0,0.00042464,18]
[342913861,1732203071489,-500.0,0.00042464,18]
[342913862,1732203071499,-500.0,0.00042464,18]
[342913863,1732203071508,-500.0,0.00042464,18]
[342913864,1732203071517,-500.0,0.00042464,18]
[342913865,1732203071526,-847.03,0.00042464,18]
[342913866,1732203071536,-500.0,0.00042464,18]
[342913867,1732203071545,-500.0,0.00042464,18]
[342913868,1732203071555,-500.0,0.00042464,18]
[342913869,1732203071564,-1468.49,0.00042464,18]
[342913870,1732203071574,-659.38,0.00042464,18]
[342913871,1732203071583,-500.0,0.00042464,18]
[342913872,1732203071592,-500.0,0.00042464,18]
[342913873,1732203071602,-1085.82,0.00042464,18]
[342913874,1732203071611,-820.35,0.00042464,18]
[342913875,1732203071622,-1238.1,0.00042464,18]
[342913876,1732203071632,-500.0,0.00042464,18]
[342913877,1732203071642,-500.0,0.00042464,7]
[342913878,1732203071651,-500.0,0.00042464,18]
[342913879,1732203071661,-300.0,0.00042464,120]
[342913880,1732203071671,-500.0,0.00042465,18]
[342913881,1732203071680,-500.0,0.00042465,18]
[342913882,1732203071690,-500.0,0.00042465,18]
[342913883,1732203071699,-599.52,0.00042465,60]
[342913884,1732203071708,-500.0,0.00042465,18]
[342913885,1732203071717,-731.08,0.00042465,18]
[342913886,1732203071730,-500.0,0.00042465,18]
[342913887,1732203071739,-590.97,0.00042465,18]
[342913888,1732203071749,-500.0,0.00042465,18]
[342913889,1732203071758,-279.84690585,0.00042465,18]
[342913890,1732203071770,-500.0,0.00042465,18]
[342913891,1732203071781,-500.0,0.00042465,18]
[342913892,1732203071790,-500.0,0.00042465,18]
[342913893,1732203071799,-500.0,0.00042465,18]
[342913894,1732203071808,-500.0,0.00042465,18]
[342913895,1732203071819,-650.05,0.00042465,18]
[342913896,1732203071829,-500.0,0.00042465,18]
[342913897,1732203071838,-500.0,0.00042465,18]
[342913898,1732203071847,-500.0,0.00042465,18]
[342913899,1732203071856,-500.0,0.00042465,18]
[342913900,1732203071866,-300.0,0.00042465,18]
[342913901,1732203071875,-500.0,0.00042465,18]
[342913902,1732203071884,-1000.0,0.00042465,18]
[342913903,1732203071893,-579.12,0.00042465,18]
[342913904,1732203071902,-500.0,0.00042465,18]
[342913905,1732203071911,-552.53,0.00042465,18]
[342913906,1732203071920,-500.0,0.00042465,18]
[342913907,1732203071929,-500.0,0.00042465,18]
[342913908,1732203071938,-500.0,0.00042465,18]
[342913909,1732203071947,-500.0,0.00042465,18]
[342913910,1732203071956,-693.3,0.00042465,18]
[342913911,1732203071965,-639.62,0.00042465,18]
[342913912,1732203071980,-593.71,0.00042465,18]
[342913913,1732203071990,-500.0,0.00042465,18]
[342913914,1732203071999,-686.47,0.00042465,18]
[342913915,1732203072008,-756.48,0.00042465,18]
[342913916,1732203072017,-537.79,0.00042465,18]
[342913917,1732203072027,-500.0,0.00042465,18]
[342913918,1732203072037,-847.2,0.00042465,18]
[342913919,1732203072046,-500.0,0.00042465,18]
[342913920,1732203072055,-500.0,0.00042465,18]
[342913921,1732203072065,-598.42,0.00042465,18]
[342913922,1732203072074,-500.0,0.00042465,18]
[342913923,1732203072084,-500.0,0.00042465,18]
[342913924,1732203072093,-500.0,0.00042465,18]
[342913925,1732203072102,-838.95,0.00042465,18]
[342913926,1732203072112,-151.0,0.00042465,14]
[342913927,1732203072121,-500.0,0.00042465,18]
[342913928,1732203072131,-530.94,0.00042465,18]
[342913929,1732203072140,-744.42,0.00042465,18]
[342913930,1732203072149,-151.0,0.00042465,14]
[342913931,1732203072158,-151.0,0.00042465,14]
[342913932,1732203072167,-551.41,0.00042465,18]
[342913933,1732203072177,-500.0,0.00042465,18]
[342913934,1732203072186,-500.0,0.00042465,18]
[342913935,1732203072195,-577.75,0.00042465,18]
[342913936,1732203072205,-632.29,0.00042465,18]
[342913937,1732203072214,-500.0,0.00042465,18]
[342913938,1732203072228,-500.0,0.00042465,18]
[342913939,1732203072238,-652.24,0.00042465,18]
[342913940,1732203072248,-304.23518441,0.00042465,18]
[342913941,1732203072258,-500.0,0.00042465,18]
[342913942,1732203072267,-500.0,0.00042465,18]
[342913943,1732203072277,-500.0,0.00042465,18]
[342913944,1732203072287,-851.64,0.00042465,18]
[342913945,1732203072297,-567.46,0.00042465,18]
[342913946,1732203072308,-500.0,0.00042465,18]
[342913947,1732203072318,-1006.3,0.00042465,18]
[342913948,1732203072327,-500.0,0.00042465,18]
[342913949,1732203072337,-500.0,0.00042465,18]
[342913950,1732203072347,-500.0,0.00042465,18]
[342913951,1732203072356,-500.0,0.00042465,18]
[342913952,1732203072366,-500.0,0.00042465,18]
[342913953,1732203072376,-614.6,0.00042465,18]
[342913954,1732203072387,-500.0,0.00042465,18]
[342913955,1732203072396,-917.1,0.00042465,18]
[342913956,1732203072406,-795.12,0.00042465,18]
[342913957,1732203072416,-525.37,0.00042465,18]
[342913958,1732203072426,-953.17,0.00042465,18]
[342913959,1732203072436,-500.0,0.00042465,18]
[342913960,1732203072445,-500.0,0.00042465,18]
[342913961,1732203072455,-993.79,0.00042465,18]
[342913962,1732203072464,-879.52,0.00042465,18]
[342913963,1732203072477,-500.0,0.00042465,18]
[342913964,1732203072487,-500.0,0.00042465,18]
[342913965,1732203072496,-1023.5,0.00042465,18]
[342913966,1732203072506,-771.47,0.00042465,18]
[342913967,1732203072515,-551.74,0.00042465,18]
[342913968,1732203072524,-560.57,0.00042465,18]
[342913969,1732203072535,-500.0,0.00042465,18]
[342913970,1732203072546,-640.52,0.00042465,18]
[342913971,1732203072556,-500.0,0.00042465,18]
[342913972,1732203072567,-1083.77,0.00042465,18]
[342913973,1732203072576,-500.0,0.00042465,18]
[342913974,1732203072586,-500.0,0.00042465,18]
[342913975,1732203072595,-500.0,0.00042465,18]
[342913976,1732203072604,-500.0,0.00042465,18]
[342913977,1732203072613,-500.0,0.00042465,18]
[342913978,1732203072623,-1588.78,0.00042465,18]
[342913979,1732203072632,-151.0,0.00042465,14]
[342913980,1732203072642,-1105.86,0.00042465,18]
[342913981,1732203072652,-500.0,0.00042465,18]
[342913982,1732203072662,-151.0,0.00042465,14]
[342913983,1732203072672,-163.71257541,0.00042465,18]
[342913984,1732203072682,-500.0,0.00042465,18]
[342913985,1732203072692,-974.33,0.00042465,18]
[342913986,1732203072701,-319.1240271,0.00042465,18]
[342913987,1732203072710,-500.0,0.00042465,18]
[342913988,1732203072722,-500.0,0.00042465,18]
[342913989,1732203072735,-500.0,0.00042465,18]
[342913990,1732203072745,-500.0,0.00042465,18]
[342913991,1732203072755,-500.0,0.00042465,18]
[342913992,1732203072764,-1277.05,0.00042465,18]
[342913993,1732203072775,-500.0,0.00042465,18]
[342913994,1732203072785,-500.0,0.00042465,18]
[342913995,1732203072796,-500.0,0.00042465,18]
[342913996,1732203072806,-786.73,0.00042465,18]
[342913997,1732203072816,-500.0,0.00042465,18]
[342913998,1732203072824,-413.45988,0.00042465,14]
[342913999,1732203072835,-500.0,0.00042465,18]
[342914000,1732203072845,-500.0,0.00042465,18]
[342914001,1732203072854,-500.0,0.00042465,18]
[342914002,1732203072864,-413.45988,0.00042465,14]
[342914003,1732203072874,-500.0,0.00042465,18]
[342914004,1732203072884,-500.0,0.00042465,18]
[342914005,1732203072894,-916.52,0.00042465,18]
[342914006,1732203072903,-500.0,0.00042465,18]
[342914007,1732203072913,-1641.18,0.00042465,18]
[342914008,1732203072923,-520.1,0.00042465,18]
[342914009,1732203072932,-669.71,0.00042465,18]
[342914010,1732203072942,-533.76,0.00042465,18]
[342914011,1732203072951,-650.4,0.00042465,18]
[342914012,1732203072961,-1305.08,0.00042465,18]
[342914013,1732203072973,-500.0,0.00042465,120]
[342914014,1732203072984,-650.25,0.00042465,18]
[342914015,1732203072993,-500.0,0.00042465,18]
[342914016,1732203073003,-500.0,0.00042465,18]
[342914017,1732203073012,-926.39,0.00042465,18]
[342914018,1732203073021,-731.05,0.00042465,18]
[342914019,1732203073030,-500.0,0.00042465,18]
[342914020,1732203073039,-500.0,0.00042465,18]
[342914021,1732203073049,-500.0,0.00042465,18]
[342914022,1732203073059,-528.32644642,0.00042465,18]
[342914023,1732203073068,-500.0,0.00042465,18]
[342914024,1732203073077,-500.0,0.00042465,18]
[342914025,1732203073086,-500.0,0.00042465,18]
[342914026,1732203073095,-624.75,0.00042465,18]
[342914027,1732203073105,-500.0,0.00042465,18]
[342914028,1732203073116,-500.0,0.00042465,18]
[342914029,1732203073126,-812.55,0.00042465,18]
[342914030,1732203073136,-500.0,0.00042465,18]
[342914031,1732203073146,-720.96,0.00042465,18]
[342914032,1732203073155,-500.0,0.00042465,18]
[342914033,1732203073164,-1901.24,0.00042465,18]
[342914034,1732203073173,-500.0,0.00042465,18]
[342914035,1732203073182,-500.0,0.00042465,18]
[342914036,1732203073191,-500.0,0.00042465,18]
[342914037,1732203073201,-10680.0,0.00042465,18]
[342914038,1732203073211,-765.15,0.00042465,18]
[342914039,1732203073220,-506.65,0.00042465,18]
[342914040,1732203073233,-797.84,0.00042465,18]
[342914041,1732203073243,-453.1162586,0.00042465,18]
[342914042,1732203073252,-500.0,0.00042465,18]
[342914043,1732203073262,-576.03,0.00042465,18]
[342914044,1732203073272,-865.82,0.00042465,18]
[342914045,1732203073281,-500.0,0.00042465,18]
[342914046,1732203073291,-500.0,0.00042465,18]
[342914047,1732203073300,-1451.99,0.00042465,18]
[342914048,1732203073310,-500.0,0.00042465,18]
[342914049,1732203073319,-500.0,0.00042465,18]
[342914050,1732203073328,-500.0,0.00042465,18]
[342914051,1732203073338,-1607.31,0.00042465,18]
[342914052,1732203073348,-667.34,0.00042465,18]
[342914053,1732203073358,-1658.0,0.00042465,18]
[342914054,1732203073367,-500.0,0.00042465,18]
[342914055,1732203073376,-500.0,0.00042465,18]
[342914056,1732203073386,-500.0,0.00042465,18]
[342914057,1732203073395,-1268.07,0.00042465,18]
[342914058,1732203073404,-1606.84,0.00042465,18]
[342914059,1732203073414,-537.46,0.00042465,18]
[342914060,1732203073424,-2509.52,0.00042465,18]
[342914061,1732203073434,-500.0,0.00042465,18]
[342914062,1732203073444,-803.03,0.00042465,18]
[342914063,1732203073453,-500.0,0.00042465,18]
[342914064,1732203073462,-500.0,0.00042465,18]
[342914065,1732203073474,-996.26,0.00042465,18]
[342914066,1732203073484,-3353.2,0.00042465,18]
[342914067,1732203073494,-500.0,0.00042465,18]
[342914068,1732203073504,-806.82,0.00042465,18]
[342914069,1732203073514,-623.97,0.00042465,18]
[342914070,1732203073524,-500.0,0.00042465,18]
[342914071,1732203073534,-500.0,0.00042465,7]
[342914072,1732203073543,-500.0,0.00042465,18]
[342914073,1732203073552,-500.0,0.00042465,18]
[342914074,1732203073562,-500.0,0.00042465,18]
[342914075,1732203073572,-1070.68,0.00042465,18]
[342914076,1732203073581,-1008.71,0.00042465,18]
[342914077,1732203073592,-500.0,0.00042465,18]
[342914078,1732203073602,-930.53,0.00042465,18]
[342914079,1732203073612,-500.0,0.00042465,18]
[342914080,1732203073622,-988.17,0.00042465,18]
[342914081,1732203073632,-500.0,0.00042465,18]
[342914082,1732203073642,-500.0,0.00042465,18]
[342914083,1732203073652,-500.0,0.00042465,18]
[342914084,1732203073662,-506.34,0.00042465,18]
[342914085,1732203073672,-500.0,0.00042465,18]
[342914086,1732203073682,-1231.05,0.00042465,18]
[342914087,1732203073691,-3923.09,0.00042465,18]
[342914088,1732203073702,-1325.85,0.00042465,18]
[342914089,1732203073712,-613.27,0.00042465,18]
[342914090,1732203073726,-642.03,0.00042465,18]
[342914091,1732203073736,-2493.49,0.00042465,18]
[342914092,1732203073746,-951.77,0.00042465,18]
[342914093,1732203073758,-500.0,0.00042465,18]
[342914094,1732203073770,-1095.88,0.00042465,18]
[342914095,1732203073781,-1342.59,0.00042465,18]
[342914096,1732203073790,-1258.46,0.00042465,18]
[342914097,1732203073800,-831.99,0.00042465,18]
[342914098,1732203073810,-500.0,0.00042465,18]
[342914099,1732203073821,-825.55,0.00042465,18]
[342914100,1732203073830,-2436.07,0.00042465,18]
[342914101,1732203073839,-1517.83,0.00042465,18]
[342914102,1732203073849,-1140.98,0.00042465,18]
[342914103,1732203073859,-500.0,0.00042465,18]
[342914104,1732203073869,-500.0,0.00042465,18]
[342914105,1732203073879,-532.56,0.00042465,18]
[342914106,1732203073888,-715.65,0.00042465,18]
[342914107,1732203073898,-1429.85,0.00042465,18]
[342914108,1732203073907,-882.47,0.00042465,18]
[342914109,1732203073917,-4581.34,0.00042465,18]
[342914110,1732203073926,-673.52,0.00042465,7]
[342914111,1732203073936,-3066.84,0.00042465,18]
[342914112,1732203073946,-537.67,0.00042465,18]
[342914113,1732203073956,-500.0,0.00042465,18]
[342914114,1732203073965,-500.0,0.00042465,18]
[342914115,1732203073978,-500.0,0.00042465,18]
[342914116,1732203073988,-500.0,0.00042465,18]
[342914117,1732203073997,-597.5,0.00042465,18]
[342914118,1732203074006,-568.99798865,0.00042465,18]
[342914119,1732203074015,-2272.21,0.00042465,18]
[342914120,1732203074025,-500.0,0.00042465,18]
[342914121,1732203074035,-1140.96,0.00042465,18]
[342914122,1732203074044,-500.0,0.00042465,18]
[342914123,1732203074054,-1695.24,0.00042465,18]
[342914124,1732203074063,-9426.66,0.00042465,2]
[342914125,1732203074073,-2207.11,0.00042465,18]
[342914126,1732203074083,-500.0,0.00042465,18]
[342914127,1732203074092,-772.2,0.00042465,18]
[342914128,1732203074102,-504.29,0.00042465,18]
[342914129,1732203074111,-500.0,0.00042465,18]
[342914130,1732203074121,-500.0,0.00042465,18]
[342914131,1732203074131,-638.86,0.00042465,18]
[342914132,1732203074141,-1207.24,0.00042465,18]
[342914133,1732203074151,-162.58608829,0.00042465,18]
[342914134,1732203074163,-13746.66,0.00042465,18]
[342914135,1732203074172,-822.02,0.00042465,18]
[342914136,1732203074182,-500.0,0.00042465,18]
[342914137,1732203074192,-500.0,0.00042465,18]
[342914138,1732203074202,-701.3,0.00042465,18]
[342914139,1732203074212,-500.0,0.00042465,18]
[342914140,1732203074222,-4447.59,0.00042465,18]
[342914141,1732203074237,-500.0,0.00042465,18]
[342914142,1732203074250,-500.0,0.00042465,18]
[342914143,1732203074261,-1274.46,0.00042465,18]
[342914144,1732203074271,-667.86,0.00042465,18]
[342914145,1732203074281,-965.8,0.00042465,18]
[342914146,1732203074293,-500.0,0.00042465,18]
[342914147,1732203074304,-654.42,0.00042465,18]
[342914148,1732203074314,-2707.92,0.00042465,18]
[342914149,1732203074324,-2163.44,0.00042465,18]
[342914150,1732203074334,-808.65,0.00042465,18]
[342914151,1732203074344,-292.5209606,0.00042466,30]
[342914152,1732203074354,-225.02061202,0.00042501,120]
[342914153,1732203074365,-225.02061202,0.00042501,120]
[342914154,1732203074375,-225.02061202,0.00042501,120]
[342914155,1732203074386,-225.02061202,0.00042501,120]
[342914156,1732203074395,-225.02061202,0.00042501,120]
[342914157,1732203074405,-225.02061202,0.00042501,120]
[342914158,1732203074414,-225.02061202,0.00042501,120]
[342914159,1732203074424,-225.02061202,0.00042501,120]
[342914160,1732203074433,-225.02061202,0.00042501,120]
[342914161,1732203074443,-225.02061202,0.00042501,120]
[342914162,1732203074453,-225.02061202,0.00042501,120]
[342914163,1732203074462,-225.02061202,0.00042501,120]
[342914164,1732203074477,-225.02061202,0.00042501,120]
[342914165,1732203074487,-225.02061202,0.00042501,120]
[342914166,1732203074497,-225.02061202,0.00042501,120]
[342914167,1732203074507,-225.02061202,0.00042501,120]
[342914168,1732203074517,-225.02061202,0.00042501,120]
[342914169,1732203074527,-225.02061202,0.00042501,120]
[342914170,1732203074537,-225.02061202,0.00042501,120]
[342914171,1732203074547,-225.02,0.00042501,120]
[342914172,1732203074557,-337.53091802,0.00042501,120]
[342914173,1732203074567,-337.53091802,0.00042501,120]
[342914174,1732203074577,-337.53091802,0.00042501,120]
[342914175,1732203074586,-337.53091802,0.00042501,120]
[342914176,1732203074597,-337.53091802,0.00042501,120]
[342914177,1732203074607,-337.53091802,0.00042501,120]
[342914178,1732203074617,-337.53091802,0.00042501,120]
[342914179,1732203074627,-337.53091802,0.00042501,120]
[342914180,1732203074637,-661.46610465,0.00042519,120]
[342914181,1732203074648,-2000.0,0.00042525,2]
[342914182,1732203074658,-1500.0,0.00042536,7]
[342914183,1732203074668,-1518.25046879,0.00042539,2]
[342914184,1732203074679,-1000.0,0.0004254,2]
[342914185,1732203074689,-1000.0,0.0004254,2]
[342914186,1732203074700,-1000.0,0.0004254,2]
[342914187,1732203074710,-1000.0,0.0004254,2]
[342914188,1732203074720,-1000.0,0.0004254,2]
[342914189,1732203074741,-1000.0,0.0004254,2]
[342914190,1732203074750,-511.38589724,0.0004254,2]
[342914191,1732203074760,-150.0,0.00042547,2]
[342914192,1732203074772,-150.0,0.00042564,2]
[342914193,1732203074781,-420.64,0.00042596,30]
[342914194,1732203074791,-10498.0,0.000426,120]
[342914195,1732203074804,-23576.36696463,0.00042601,120]
[342914196,1732203074814,-150.0,0.00042614,2]
[342914197,1732203074824,-150.0,0.00042616,2]
[342914198,1732203074834,-1500.0,0.00042618,7]
[342914199,1732203074844,-150.0,0.00042621,2]
[342914200,1732203074854,-150.0,0.00042626,2]
[342914201,1732203074864,-846.77,0.0004263,120]
[342914202,1732203074873,-2347.54,0.0004263,120]
[342914203,1732203074885,-337.53091802,0.00042631,120]
[342914204,1732203074895,-150.0,0.00042637,2]
[342914205,1732203074904,-1000.0,0.00042655,2]
[342914206,1732203074914,-292.5209606,0.00042658,30]
[342914207,1732203074923,-150.0,0.00042665,2]
[342914208,1732203074932,-1461.66921981,0.00042667,7]
[342914209,1732203074942,-167.23637625,0.00042671,28]
[342914210,1732203074952,-538.72,0.00042676,2]
[342914211,1732203074961,-150.0,0.00042688,2]
[342914212,1732203074971,-1500.0,0.0004271,7]
[342914213,1732203074988,-1311.101231,0.00042711,2]
[342914214,1732203074999,-354.0325,0.00042724,2]
[342914215,1732203075009,-18344.53225187,0.00042725,30]
[342914216,1732203075019,-150.0,0.00042725,2]
[342914217,1732203075029,-22086.79999993,0.0004273,18]
[342914218,1732203075039,-2978.4776221,0.0004273,2]
[342914219,1732203075049,-927.6235131,0.00042731,2]
[342914220,1732203075060,-500.0,0.00042738,18]
[342914221,1732203075070,-500.0,0.00042738,18]
[342914222,1732203075079,-500.0,0.00042738,18]
[342914223,1732203075089,-500.0,0.00042738,18]
[342914224,1732203075099,-563.4,0.00042738,18]
[342914225,1732203075109,-560.63,0.00042738,18]
[342914226,1732203075119,-528.13,0.00042738,18]
[342914227,1732203075128,-500.0,0.00042738,18]
[342914228,1732203075138,-500.0,0.00042738,18]
[342914229,1732203075148,-424.94887485,0.00042738,18]
[342914230,1732203075157,-500.0,0.00042738,18]
[342914231,1732203075167,-560.23,0.00042738,18]
[342914232,1732203075176,-500.0,0.00042738,18]
[342914233,1732203075186,-500.0,0.00042738,18]
[342914234,1732203075195,-500.0,0.00042738,18]
[342914235,1732203075206,-500.0,0.00042738,18]
[342914236,1732203075216,-500.0,0.00042738,18]
[342914237,1732203075232,-500.0,0.00042738,120]
[342914238,1732203075242,-435.41666946,0.00042738,18]
[342914239,1732203075252,-500.0,0.00042738,18]
[342914240,1732203075262,-337.39388126,0.00042738,18]
[342914241,1732203075272,-500.0,0.00042738,18]
[342914242,1732203075281,-500.0,0.00042738,18]
[342914243,1732203075291,-638.76,0.00042738,18]
[342914244,1732203075301,-500.0,0.00042738,18]
[342914245,1732203075311,-500.0,0.00042738,18]
[342914246,1732203075320,-500.0,0.00042738,18]
[342914247,1732203075330,-500.0,0.00042738,18]
[342914248,1732203075340,-615.56,0.00042738,18]
[342914249,1732203075349,-500.0,0.00042738,18]
[342914250,1732203075359,-500.0,0.00042738,18]
[342914251,1732203075369,-500.0,0.00042738,18]
[342914252,1732203075379,-500.0,0.00042738,18]
[342914253,1732203075389,-530.62,0.00042738,18]
[342914254,1732203075399,-500.0,0.00042738,18]
[342914255,1732203075409,-500.0,0.00042738,18]
[342914256,1732203075419,-500.0,0.00042738,18]
[342914257,1732203075429,-500.0,0.00042738,18]
[342914258,1732203075439,-500.0,0.00042738,18]
[342914259,1732203075448,-500.0,0.00042738,18]
[342914260,1732203075458,-500.0,0.00042738,18]